Workbook

Sheet Elite
A9: Teilnehmerliste Verbandsmatch Gewehr 50m | F9: 2025 | G9: 2025-10-04
A10: Liste des participants match inter-fédérations carabine 50m | J10: Zelgli / Schwadernau
A13: Unterverband: | C13: =IF($A$15<>"",VLOOKUP($A$15,elite,2,FALSE)," ") ->  | F13: =IF($A$15<>"",VLOOKUP($A$15,elite,4,FALSE)," ") ->  | J13: Elite
A14: Sous-fédération
A16: Adresse Matchchef:
A17: I'adresse chef de match
A22: Ablösung Série | D22: Name / Vorname Nome et prénom | H22: Jahrgang année | I22: Lizenz Nr. liz no.
A38: EINZELSCHÜTZEN
A43: Datum:
A45: Die Teilnehmer sind Schriftlich und gut leserlich bis am 14. September 2025 anzumelden an:
A46: L'annonce des participants doit être adressée jusqu'au 14. septembre 2025 à:
A47: Armando Amrein, Entlebucherstrasse 36, 6110 Wolhusen, Tel. 041- 490 13 41 / 079- 424 05 34
A48: E-Mail: | B48: ssv@armando-amrein.ch

Sheet Junioren
K1: 2006
N8: 1998 | O8: =$F$9 -> 2025 | P8: =O8-N8 -> 27 | Q8: ELITE
A9: Teilnehmerliste Verbandsmatch Gewehr 50m | F9: =Elite!F9 -> 2025 | G9: =Elite!G9+1 -> 2025-10-05 | N9: 1999 | O9: 2025 | P9: 26 | Q9: ELITE
A10: Liste des participants match inter-fédérations carabine 50m | J10: =Elite!J10 -> Zelgli / Schwadernau | N10: 2000 | O10: 2025 | P10: 25 | Q10: ELITE
N11: 2001 | O11: 2025 | P11: 24 | Q11: ELITE
N12: 2002 | O12: =$F$9 -> 2025 | P12: =O12-N12 -> 23 | Q12: ELITE
A13: Unterverband: | C13: =IF($A$15<>"",VLOOKUP($A$15,junior,2,FALSE)," ") -> Zürich | F13: =IF($A$15<>"",VLOOKUP($A$15,junior,4,FALSE)," ") -> 5 | J13: Junioren | N13: =$F$9-20 -> 2005 | O13: 2025 | P13: =O13-N13 -> 20 | Q13: U21
A14: Sous-fédération | N14: =$F$9-19 -> 2006 | O14: 2025 | P14: =O14-N14 -> 19 | Q14: U21
A15: 17 | N15: =$F$9-18 -> 2007 | O15: 2025 | P15: =O15-N15 -> 18 | Q15: U19
A16: Adresse Matchchef: | N16: =$F$9-17 -> 2008 | O16: 2025 | P16: =O16-N16 -> 17 | Q16: U19
A17: I'adresse chef de match | N17: =$F$9-16 -> 2009 | O17: 2025 | P17: 16 | Q17: U13-U17
N18: =$F$9-15 -> 2010 | O18: 2025 | P18: 15 | Q18: U13-U17
N19: =$F$9-14 -> 2011 | O19: =$F$9 -> 2025 | P19: 14 | Q19: U13-U17
N20: =$F$9-13 -> 2012 | O20: 2025 | P20: 13 | Q20: U13-U17
N21: =$F$9-12 -> 2013 | O21: 2025 | P21: 12 | Q21: U13-U17
A22: Ablösung Série | D22: Name / Vorname Nome et prénom | H22: Jahrgang année | I22: Kat. cat. | J22: Lizenz Nr. liz no | N22: =$F$9-11 -> 2014 | O22: 2025 | P22: 11 | Q22: U13-U17
I23: =IF(H23="","",VLOOKUP($K$23:$K$42,$P$8:$Q$25,2,FALSE)) ->  | K23: =IF(H23="","",$F$9-H23) ->  | N23: =$F$9-10 -> 2015 | O23: 2025 | P23: 10 | Q23: U13-U17
K24: =IF(H24="","",$F$9-H24) ->  | N24: =$F$9-9 -> 2016 | O24: 2025 | P24: 9 | Q24: U13-U17
N25: =$F$9-8 -> 2017 | O25: 2025 | P25: 8 | Q25: U13-U17
A38: EINZELSCHÜTZEN
I39: =IF(H39="","",VLOOKUP($K$23:$K$42,$P$8:$Q$25,2,FALSE)) -> 
I40: =IF(H40="","",VLOOKUP($K$23:$K$42,$P$8:$Q$25,2,FALSE)) -> 
I41: =IF(H41="","",VLOOKUP($K$23:$K$42,$P$8:$Q$25,2,FALSE)) -> 
I42: =IF(H42="","",VLOOKUP($K$23:$K$42,$P$8:$Q$25,2,FALSE)) -> 
A43: Datum:
A45: =Elite!A45 -> Die Teilnehmer sind Schriftlich und gut leserlich bis am 14. September 2025 anzumelden an:
A46: =Elite!A46 -> L'annonce des participants doit être adressée jusqu'au 14. septembre 2025 à:
A47: =Elite!A47 -> Armando Amrein, Entlebucherstrasse 36, 6110 Wolhusen, Tel. 041- 490 13 41 / 079- 424 05 34
A48: E-Mail: | B48: ssv@armando-amrein.ch

Sheet Daten (hidden)
B1: ELITE | E1: 1 | H1: 2 | K1: 3 | N1: 4 | Q1: 5 | T1: 6 | W1: 7 | Z1: 8 | AC1: 9 | AF1: 10 | AI1: 11 | AL1: 12 | AO1: 13 | AR1: 14 | AU1: 15 | AX1: 16 | BA1: 17 | BD1: 18 | BG1: 19
E2: A | F2: S | G2: N | H2: A | I2: S | J2: N | K2: A | L2: S | M2: N | N2: A | O2: S | P2: N | Q2: A | R2: S | S2: N | T2: A | U2: S | V2: N | W2: A | X2: S | Y2: N | Z2: A | AA2: S | AB2: N | AC2: A | AD2: S | AE2: N | AF2: A | AG2: S | AH2: N | AI2: A | AJ2: S | AK2: N | AL2: A | AM2: S | AN2: N | AO2: A | AP2: S | AQ2: N | AR2: A | AS2: S | AT2: N | AU2: A | AV2: S | AW2: N | AX2: A | AY2: S | AZ2: N | BA2: A | BB2: S | BC2: N | BD2: A | BE2: S | BF2: N | BG2: A | BH2: S | BI2: N | BL2: 138 | BN2: 1
A3: 1 | B3: Aargau | C3: AG | D3: 5 | G3: =E3*100+F3 -> 0 | J3: =H3*100+I3 -> 0 | M3: =K3*100+L3 -> 0 | P3: =N3*100+O3 -> 0 | S3: =Q3*100+R3 -> 0 | V3: =T3*100+U3 -> 0 | Y3: =W3*100+X3 -> 0 | AB3: =Z3*100+AA3 -> 0 | AE3: =AC3*100+AD3 -> 0 | AH3: =AF3*100+AG3 -> 0 | AK3: =AI3*100+AJ3 -> 0 | AN3: =AL3*100+AM3 -> 0 | AQ3: =AO3*100+AP3 -> 0 | AT3: =AR3*100+AS3 -> 0 | AW3: =AU3*100+AV3 -> 0 | AZ3: =AX3*100+AY3 -> 0 | BC3: =BA3*100+BB3 -> 0 | BF3: =BD3*100+BE3 -> 0 | BI3: =BG3*100+BH3 -> 0 | BJ3: =COUNTA(F3,I3,L3,O3,R3,U3,X3,AA3,AD3,AG3,AJ3,AM3,AP3,AS3,AV3,AY3,BB3,BE3,BH3) -> 0 | BK3: =IF(D3="","",D3-BJ3) -> 5 | BN3: 2
A4: 2 | B4: Basel | C4: BS | D4: 4 | G4: =E4*100+F4 -> 0 | J4: =H4*100+I4 -> 0 | M4: =K4*100+L4 -> 0 | P4: =N4*100+O4 -> 0 | S4: =Q4*100+R4 -> 0 | V4: =T4*100+U4 -> 0 | Y4: =W4*100+X4 -> 0 | AB4: =Z4*100+AA4 -> 0 | AE4: =AC4*100+AD4 -> 0 | AH4: =AF4*100+AG4 -> 0 | AK4: =AI4*100+AJ4 -> 0 | AN4: =AL4*100+AM4 -> 0 | AQ4: =AO4*100+AP4 -> 0 | AT4: =AR4*100+AS4 -> 0 | AW4: =AU4*100+AV4 -> 0 | AZ4: =AX4*100+AY4 -> 0 | BC4: =BA4*100+BB4 -> 0 | BF4: =BD4*100+BE4 -> 0 | BI4: =BG4*100+BH4 -> 0 | BJ4: =COUNTA(F4,I4,L4,O4,R4,U4,X4,AA4,AD4,AG4,AJ4,AM4,AP4,AS4,AV4,AY4,BB4,BE4,BH4) -> 0 | BK4: =IF(D4="","",D4-BJ4) -> 4 | BL4: ELITE | BN4: 3
A5: 3 | B5: Bern | C5: BE | D5: 6 | G5: 0 | J5: 0 | M5: 0 | P5: 0 | S5: 0 | V5: 0 | Y5: 0 | AB5: 0 | AE5: 0 | AH5: 0 | AK5: 0 | AN5: 0 | AQ5: 0 | AT5: 0 | AW5: 0 | AZ5: 0 | BC5: 0 | BF5: 0 | BI5: 0 | BJ5: 0 | BK5: 6 | BN5: 4
A6: 4 | B6: Fribourg | C6: FR | D6: 5 | G6: 0 | J6: 0 | M6: 0 | P6: 0 | S6: 0 | V6: 0 | Y6: 0 | AB6: 0 | AE6: 0 | AH6: 0 | AK6: 0 | AN6: 0 | AQ6: 0 | AT6: 0 | AW6: 0 | AZ6: 0 | BC6: 0 | BF6: 0 | BI6: 0 | BJ6: 0 | BK6: 5 | BN6: 5
A7: 5 | B7: Genf | C7: GE | D7: 3 | G7: 0 | J7: 0 | M7: 0 | P7: 0 | S7: 0 | V7: 0 | Y7: 0 | AB7: 0 | AE7: 0 | AH7: 0 | AK7: 0 | AN7: 0 | AQ7: 0 | AT7: 0 | AW7: 0 | AZ7: 0 | BC7: 0 | BF7: 0 | BI7: 0 | BJ7: 0 | BK7: 3 | BN7: 6
A8: 6 | B8: Glarus | C8: GL | D8: 3 | G8: 0 | J8: 0 | M8: 0 | P8: 0 | S8: 0 | V8: 0 | Y8: 0 | AB8: 0 | AE8: 0 | AH8: 0 | AK8: 0 | AN8: 0 | AQ8: 0 | AT8: 0 | AW8: 0 | AZ8: 0 | BC8: 0 | BF8: 0 | BI8: 0 | BJ8: 0 | BK8: 3 | BN8: 7
A9: 7 | B9: Graubünden | C9: GR | D9: 4 | G9: 0 | J9: 0 | M9: 0 | P9: 0 | S9: 0 | V9: 0 | Y9: 0 | AB9: 0 | AE9: 0 | AH9: 0 | AK9: 0 | AN9: 0 | AQ9: 0 | AT9: 0 | AW9: 0 | AZ9: 0 | BC9: 0 | BF9: 0 | BI9: 0 | BJ9: 0 | BK9: 4 | BN9: 8
A10: 8 | B10: Jura | C10: JU | D10: 3 | G10: 0 | J10: 0 | M10: 0 | P10: 0 | S10: 0 | V10: 0 | Y10: 0 | AB10: 0 | AE10: 0 | AH10: 0 | AK10: 0 | AN10: 0 | AQ10: 0 | AT10: 0 | AW10: 0 | AZ10: 0 | BC10: 0 | BF10: 0 | BI10: 0 | BJ10: 0 | BK10: 3 | BN10: 9
A11: 9 | B11: Linth | C11: LI | D11: 3 | G11: 0 | J11: 0 | M11: 0 | P11: 0 | S11: 0 | V11: 0 | Y11: 0 | AB11: 0 | AE11: 0 | AH11: 0 | AK11: 0 | AN11: 0 | AQ11: 0 | AT11: 0 | AW11: 0 | AZ11: 0 | BC11: 0 | BF11: 0 | BI11: 0 | BJ11: 0 | BK11: 3 | BN11: 10
A12: 10 | B12: Neuchâtel | C12: NE | D12: 3 | G12: 0 | J12: 0 | M12: 0 | P12: 0 | S12: 0 | V12: 0 | Y12: 0 | AB12: 0 | AE12: 0 | AH12: 0 | AK12: 0 | AN12: 0 | AQ12: 0 | AT12: 0 | AW12: 0 | AZ12: 0 | BC12: 0 | BF12: 0 | BI12: 0 | BJ12: 0 | BK12: 3 | BN12: 11
A13: 11 | B13: Ostschweiz | C13: OS | D13: 5 | G13: 0 | J13: 0 | M13: 0 | P13: 0 | S13: 0 | V13: 0 | Y13: 0 | AB13: 0 | AE13: 0 | AH13: 0 | AK13: 0 | AN13: 0 | AQ13: 0 | AT13: 0 | AW13: 0 | AZ13: 0 | BC13: 0 | BF13: 0 | BI13: 0 | BJ13: 0 | BK13: 5 | BN13: 12
A14: 12 | B14: Rollstuhlsport | C14: RS | G14: 0 | J14: 0 | M14: 0 | P14: 0 | S14: 0 | V14: 0 | Y14: 0 | AB14: 0 | AE14: 0 | AH14: 0 | AK14: 0 | AN14: 0 | AQ14: 0 | AT14: 0 | AW14: 0 | AZ14: 0 | BC14: 0 | BF14: 0 | BI14: 0 | BJ14: 0 | BN14: 13
A15: 13 | B15: Solothurn | C15: SO | D15: 5 | G15: 0 | J15: 0 | M15: 0 | P15: 0 | S15: 0 | V15: 0 | Y15: 0 | AB15: 0 | AE15: 0 | AH15: 0 | AK15: 0 | AN15: 0 | AQ15: 0 | AT15: 0 | AW15: 0 | AZ15: 0 | BC15: 0 | BF15: 0 | BI15: 0 | BJ15: 0 | BK15: 5 | BN15: 14
A16: 14 | B16: Ticino | C16: TI | D16: 5 | G16: 0 | J16: 0 | M16: 0 | P16: 0 | S16: 0 | V16: 0 | Y16: 0 | AB16: 0 | AE16: 0 | AH16: 0 | AK16: 0 | AN16: 0 | AQ16: 0 | AT16: 0 | AW16: 0 | AZ16: 0 | BC16: 0 | BF16: 0 | BI16: 0 | BJ16: 0 | BK16: 5 | BN16: 15
A17: 15 | B17: Vaud | C17: VD | D17: 5 | G17: 0 | J17: 0 | M17: 0 | P17: 0 | S17: 0 | V17: 0 | Y17: 0 | AB17: 0 | AE17: 0 | AH17: 0 | AK17: 0 | AN17: 0 | AQ17: 0 | AT17: 0 | AW17: 0 | AZ17: 0 | BC17: 0 | BF17: 0 | BI17: 0 | BJ17: 0 | BK17: 5 | BN17: 16
A18: 16 | B18: Valais | C18: VS | D18: 5 | G18: 0 | J18: 0 | M18: 0 | P18: 0 | S18: 0 | V18: 0 | Y18: 0 | AB18: 0 | AE18: 0 | AH18: 0 | AK18: 0 | AN18: 0 | AQ18: 0 | AT18: 0 | AW18: 0 | AZ18: 0 | BC18: 0 | BF18: 0 | BI18: 0 | BJ18: 0 | BK18: 5 | BN18: 17
A19: 17 | B19: Zentralschweiz | C19: ZE | D19: 6 | G19: 0 | J19: 0 | M19: 0 | P19: 0 | S19: 0 | V19: 0 | Y19: 0 | AB19: 0 | AE19: 0 | AH19: 0 | AK19: 0 | AN19: 0 | AQ19: 0 | AT19: 0 | AW19: 0 | AZ19: 0 | BC19: 0 | BF19: 0 | BI19: 0 | BJ19: 0 | BK19: 6 | BN19: 18
A20: 18 | B20: Zürich | C20: ZH | D20: 5 | G20: 0 | J20: 0 | M20: 0 | P20: 0 | S20: 0 | V20: 0 | Y20: 0 | AB20: 0 | AE20: 0 | AH20: 0 | AK20: 0 | AN20: 0 | AQ20: 0 | AT20: 0 | AW20: 0 | AZ20: 0 | BC20: 0 | BF20: 0 | BI20: 0 | BJ20: 0 | BK20: 5 | BN20: 19
G21: 0 | J21: 0 | M21: 0 | P21: 0 | S21: 0 | V21: 0 | Y21: 0 | AB21: 0 | AE21: 0 | AH21: 0 | AK21: 0 | AN21: 0 | AQ21: 0 | AT21: 0 | AW21: 0 | AZ21: 0 | BC21: 0 | BF21: 0 | BI21: 0 | BJ21: 0 | BN21: 20
B22: 0 | C22: 0 | G22: 0 | J22: 0 | M22: 0 | P22: 0 | S22: 0 | V22: 0 | Y22: 0 | AB22: 0 | AE22: 0 | AH22: 0 | AK22: 0 | AN22: 0 | AQ22: 0 | AT22: 0 | AW22: 0 | AZ22: 0 | BC22: 0 | BF22: 0 | BI22: 0 | BJ22: 0 | BN22: 21
G23: 0 | J23: 0 | M23: 0 | P23: 0 | S23: 0 | V23: 0 | Y23: 0 | AB23: 0 | AE23: 0 | AH23: 0 | AK23: 0 | AN23: 0 | AQ23: 0 | AT23: 0 | AW23: 0 | AZ23: 0 | BC23: 0 | BF23: 0 | BI23: 0 | BJ23: 0 | BN23: 22
G24: 0 | J24: 0 | M24: 0 | P24: 0 | S24: 0 | V24: 0 | Y24: 0 | AB24: 0 | AE24: 0 | AH24: 0 | AK24: 0 | AN24: 0 | AQ24: 0 | AT24: 0 | AW24: 0 | AZ24: 0 | BC24: 0 | BF24: 0 | BI24: 0 | BJ24: 0 | BN24: 23
G25: 0 | J25: 0 | M25: 0 | P25: 0 | S25: 0 | V25: 0 | Y25: 0 | AB25: 0 | AE25: 0 | AH25: 0 | AK25: 0 | AN25: 0 | AQ25: 0 | AT25: 0 | AW25: 0 | AZ25: 0 | BC25: 0 | BF25: 0 | BI25: 0 | BJ25: 0 | BN25: 24
G26: 0 | J26: 0 | M26: 0 | P26: 0 | S26: 0 | V26: 0 | Y26: 0 | AB26: 0 | AE26: 0 | AH26: 0 | AK26: 0 | AN26: 0 | AQ26: 0 | AT26: 0 | AW26: 0 | AZ26: 0 | BC26: 0 | BF26: 0 | BI26: 0 | BJ26: 0 | BN26: 25
G27: 0 | J27: 0 | M27: 0 | P27: 0 | S27: 0 | V27: 0 | Y27: 0 | AB27: 0 | AE27: 0 | AH27: 0 | AK27: 0 | AN27: 0 | AQ27: 0 | AT27: 0 | AW27: 0 | AZ27: 0 | BC27: 0 | BF27: 0 | BI27: 0 | BJ27: 0 | BK27: =D27-BJ27 -> 0 | BN27: 26
D28: =SUM(D3:D27) -> 75 | G28: 0 | J28: 0 | M28: 0 | P28: 0 | S28: 0 | V28: 0 | Y28: 0 | AB28: 0 | AE28: 0 | AH28: 0 | AK28: 0 | AN28: 0 | AQ28: 0 | AT28: 0 | AW28: 0 | AZ28: 0 | BC28: 0 | BF28: 0 | BI28: 0 | BJ28: =SUM(BJ3:BJ27) -> 0 | BK28: =D28-BJ28 -> 75 | BN28: 27
B29: JUNIOREN | G29: 0 | J29: 0 | M29: 0 | P29: 0 | S29: 0 | V29: 0 | Y29: 0 | AB29: 0 | AE29: 0 | AH29: 0 | AK29: 0 | AN29: 0 | AQ29: 0 | AT29: 0 | AW29: 0 | AZ29: 0 | BC29: 0 | BF29: 0 | BI29: 0 | BN29: 28
G30: 0 | J30: 0 | M30: 0 | P30: 0 | S30: 0 | V30: 0 | Y30: 0 | AB30: 0 | AE30: 0 | AH30: 0 | AK30: 0 | AN30: 0 | AQ30: 0 | AT30: 0 | AW30: 0 | AZ30: 0 | BC30: 0 | BF30: 0 | BI30: 0 | BJ30: =COUNTA(A30:E30)/2 -> 0 | BN30: 29
A31: 1 | B31: Aargau | C31: AG | D31: 4 | G31: 0 | J31: 0 | M31: 0 | P31: 0 | S31: 0 | V31: 0 | Y31: 0 | AB31: 0 | AE31: 0 | AH31: 0 | AK31: 0 | AN31: 0 | AQ31: 0 | AT31: 0 | AW31: 0 | AZ31: 0 | BC31: 0 | BF31: 0 | BI31: 0 | BJ31: =COUNTA(F31,I31,L31,O31,R31,U31,X31,AA31,AD31,AG31,AJ31,AM31,AP31,AS31,AV31,AY31,BB31,BE31,BH31) -> 0 | BK31: =IF(D31="","",D31-BJ31) -> 4 | BL31: 131 | BN31: 30
A32: 2 | B32: Basel | C32: BS | D32: 3 | G32: 0 | J32: 0 | M32: 0 | P32: 0 | S32: 0 | V32: 0 | Y32: 0 | AB32: 0 | AE32: 0 | AH32: 0 | AK32: 0 | AN32: 0 | AQ32: 0 | AT32: 0 | AW32: 0 | AZ32: 0 | BC32: 0 | BF32: 0 | BI32: 0 | BJ32: 0 | BK32: =IF(D32="","",D32-BJ32) -> 3 | BN32: 31
A33: 3 | B33: Bern | C33: BE | D33: 6 | G33: 0 | J33: 0 | M33: 0 | P33: 0 | S33: 0 | V33: 0 | Y33: 0 | AB33: 0 | AE33: 0 | AH33: 0 | AK33: 0 | AN33: 0 | AQ33: 0 | AT33: 0 | AW33: 0 | AZ33: 0 | BC33: 0 | BF33: 0 | BI33: 0 | BJ33: 0 | BK33: 6 | BL33: JUNIOREN | BN33: 32
A34: 4 | B34: Fribourg | C34: FR | D34: 4 | G34: 0 | J34: 0 | M34: 0 | P34: 0 | S34: 0 | V34: 0 | Y34: 0 | AB34: 0 | AE34: 0 | AH34: 0 | AK34: 0 | AN34: 0 | AQ34: 0 | AT34: 0 | AW34: 0 | AZ34: 0 | BC34: 0 | BF34: 0 | BI34: 0 | BJ34: 0 | BK34: 4 | BN34: 33
A35: 5 | B35: Genf | C35: GE | D35: 3 | G35: 0 | J35: 0 | M35: 0 | P35: 0 | S35: 0 | V35: 0 | Y35: 0 | AB35: 0 | AE35: 0 | AH35: 0 | AK35: 0 | AN35: 0 | AQ35: 0 | AT35: 0 | AW35: 0 | AZ35: 0 | BC35: 0 | BF35: 0 | BI35: 0 | BJ35: 0 | BK35: 3 | BN35: 34
A36: 6 | B36: Glarus | C36: GL | D36: 3 | G36: 0 | J36: 0 | M36: 0 | P36: 0 | S36: 0 | V36: 0 | Y36: 0 | AB36: 0 | AE36: 0 | AH36: 0 | AK36: 0 | AN36: 0 | AQ36: 0 | AT36: 0 | AW36: 0 | AZ36: 0 | BC36: 0 | BF36: 0 | BI36: 0 | BJ36: 0 | BK36: 3 | BN36: 35
A37: 7 | B37: Graubünden | C37: GR | D37: 4 | G37: 0 | J37: 0 | M37: 0 | P37: 0 | S37: 0 | V37: 0 | Y37: 0 | AB37: 0 | AE37: 0 | AH37: 0 | AK37: 0 | AN37: 0 | AQ37: 0 | AT37: 0 | AW37: 0 | AZ37: 0 | BC37: 0 | BF37: 0 | BI37: 0 | BJ37: 0 | BK37: 4 | BN37: 36
A38: 8 | B38: Jura | C38: JU | D38: 3 | G38: 0 | J38: 0 | M38: 0 | P38: 0 | S38: 0 | V38: 0 | Y38: 0 | AB38: 0 | AE38: 0 | AH38: 0 | AK38: 0 | AN38: 0 | AQ38: 0 | AT38: 0 | AW38: 0 | AZ38: 0 | BC38: 0 | BF38: 0 | BI38: 0 | BJ38: 0 | BK38: 3 | BN38: 37
A39: 9 | B39: Linth | C39: LI | D39: 3 | G39: 0 | J39: 0 | M39: 0 | P39: 0 | S39: 0 | V39: 0 | Y39: 0 | AB39: 0 | AE39: 0 | AH39: 0 | AK39: 0 | AN39: 0 | AQ39: 0 | AT39: 0 | AW39: 0 | AZ39: 0 | BC39: 0 | BF39: 0 | BI39: 0 | BJ39: 0 | BK39: 3 | BN39: 38
A40: 10 | B40: Neuchâtel | C40: NE | D40: 3 | G40: 0 | J40: 0 | M40: 0 | P40: 0 | S40: 0 | V40: 0 | Y40: 0 | AB40: 0 | AE40: 0 | AH40: 0 | AK40: 0 | AN40: 0 | AQ40: 0 | AT40: 0 | AW40: 0 | AZ40: 0 | BC40: 0 | BF40: 0 | BI40: 0 | BJ40: 0 | BK40: 3 | BN40: 39
A41: 11 | B41: Ostschweiz | C41: OS | D41: 5 | G41: 0 | J41: 0 | M41: 0 | P41: 0 | S41: 0 | V41: 0 | Y41: 0 | AB41: 0 | AE41: 0 | AH41: 0 | AK41: 0 | AN41: 0 | AQ41: 0 | AT41: 0 | AW41: 0 | AZ41: 0 | BC41: 0 | BF41: 0 | BI41: 0 | BJ41: 0 | BK41: 5 | BN41: 40
A42: 12 | B42: Solothurn | C42: SO | D42: 5 | G42: 0 | J42: 0 | M42: 0 | P42: 0 | S42: 0 | V42: 0 | Y42: 0 | AB42: 0 | AE42: 0 | AH42: 0 | AK42: 0 | AN42: 0 | AQ42: 0 | AT42: 0 | AW42: 0 | AZ42: 0 | BC42: 0 | BF42: 0 | BI42: 0 | BJ42: 0 | BK42: 5 | BN42: 41
A43: 13 | B43: Ticino | C43: TI | D43: 4 | G43: 0 | J43: 0 | M43: 0 | P43: 0 | S43: 0 | V43: 0 | Y43: 0 | AB43: 0 | AE43: 0 | AH43: 0 | AK43: 0 | AN43: 0 | AQ43: 0 | AT43: 0 | AW43: 0 | AZ43: 0 | BC43: 0 | BF43: 0 | BI43: 0 | BJ43: 0 | BK43: 4 | BN43: 42
A44: 14 | B44: Vaud | C44: VD | D44: 4 | G44: 0 | J44: 0 | M44: 0 | P44: 0 | S44: 0 | V44: 0 | Y44: 0 | AB44: 0 | AE44: 0 | AH44: 0 | AK44: 0 | AN44: 0 | AQ44: 0 | AT44: 0 | AW44: 0 | AZ44: 0 | BC44: 0 | BF44: 0 | BI44: 0 | BJ44: 0 | BK44: 4 | BN44: 43
A45: 15 | B45: Valais | C45: VS | D45: 4 | G45: 0 | J45: 0 | M45: 0 | P45: 0 | S45: 0 | V45: 0 | Y45: 0 | AB45: 0 | AE45: 0 | AH45: 0 | AK45: 0 | AN45: 0 | AQ45: 0 | AT45: 0 | AW45: 0 | AZ45: 0 | BC45: 0 | BF45: 0 | BI45: 0 | BJ45: 0 | BK45: 4 | BN45: 44
A46: 16 | B46: Zentralschweiz | C46: ZE | D46: 6 | G46: 0 | J46: 0 | M46: 0 | P46: 0 | S46: 0 | V46: 0 | Y46: 0 | AB46: 0 | AE46: 0 | AH46: 0 | AK46: 0 | AN46: 0 | AQ46: 0 | AT46: 0 | AW46: 0 | AZ46: 0 | BC46: 0 | BF46: 0 | BI46: 0 | BJ46: 0 | BK46: 6 | BN46: 45
A47: 17 | B47: Zürich | C47: ZH | D47: 5 | G47: 0 | J47: 0 | M47: 0 | P47: 0 | S47: 0 | V47: 0 | Y47: 0 | AB47: 0 | AE47: 0 | AH47: 0 | AK47: 0 | AN47: 0 | AQ47: 0 | AT47: 0 | AW47: 0 | AZ47: 0 | BC47: 0 | BF47: 0 | BI47: 0 | BJ47: 0 | BK47: 5 | BN47: 46
G48: 0 | J48: 0 | M48: 0 | P48: 0 | S48: 0 | V48: 0 | Y48: 0 | AB48: 0 | AE48: 0 | AH48: 0 | AK48: 0 | AN48: 0 | AQ48: 0 | AT48: 0 | AW48: 0 | AZ48: 0 | BC48: 0 | BF48: 0 | BI48: 0 | BJ48: 0 | BN48: 47
G49: 0 | J49: 0 | M49: 0 | P49: 0 | S49: 0 | V49: 0 | Y49: 0 | AB49: 0 | AE49: 0 | AH49: 0 | AK49: 0 | AN49: 0 | AQ49: 0 | AT49: 0 | AW49: 0 | AZ49: 0 | BC49: 0 | BF49: 0 | BI49: 0 | BJ49: 0 | BN49: 48
G50: 0 | J50: 0 | M50: 0 | P50: 0 | S50: 0 | V50: 0 | Y50: 0 | AB50: 0 | AE50: 0 | AH50: 0 | AK50: 0 | AN50: 0 | AQ50: 0 | AT50: 0 | AW50: 0 | AZ50: 0 | BC50: 0 | BF50: 0 | BI50: 0 | BJ50: 0 | BN50: 49
G51: 0 | J51: 0 | M51: 0 | P51: 0 | S51: 0 | V51: 0 | Y51: 0 | AB51: 0 | AE51: 0 | AH51: 0 | AK51: 0 | AN51: 0 | AQ51: 0 | AT51: 0 | AW51: 0 | AZ51: 0 | BC51: 0 | BF51: 0 | BI51: 0 | BJ51: 0 | BN51: 50
G52: 0 | J52: 0 | M52: 0 | P52: 0 | S52: 0 | V52: 0 | Y52: 0 | AB52: 0 | AE52: 0 | AH52: 0 | AK52: 0 | AN52: 0 | AQ52: 0 | AT52: 0 | AW52: 0 | AZ52: 0 | BC52: 0 | BF52: 0 | BI52: 0 | BJ52: 0 | BN52: 51
G53: 0 | J53: 0 | M53: 0 | P53: 0 | S53: 0 | V53: 0 | Y53: 0 | AB53: 0 | AE53: 0 | AH53: 0 | AK53: 0 | AN53: 0 | AQ53: 0 | AT53: 0 | AW53: 0 | AZ53: 0 | BC53: 0 | BF53: 0 | BI53: 0 | BJ53: 0 | BN53: 52
G54: 0 | J54: 0 | M54: 0 | P54: 0 | S54: 0 | V54: 0 | Y54: 0 | AB54: 0 | AE54: 0 | AH54: 0 | AK54: 0 | AN54: 0 | AQ54: 0 | AT54: 0 | AW54: 0 | AZ54: 0 | BC54: 0 | BF54: 0 | BI54: 0 | BJ54: 0 | BN54: 53
G55: 0 | J55: 0 | M55: 0 | P55: 0 | S55: 0 | V55: 0 | Y55: 0 | AB55: 0 | AE55: 0 | AH55: 0 | AK55: 0 | AN55: 0 | AQ55: 0 | AT55: 0 | AW55: 0 | AZ55: 0 | BC55: 0 | BF55: 0 | BI55: 0 | BJ55: 0 | BK55: =D55-BJ55 -> 0 | BN55: 54
D56: =SUM(D31:D55) -> 69 | G56: 0 | J56: 0 | M56: 0 | P56: 0 | S56: 0 | V56: 0 | Y56: 0 | AB56: 0 | AE56: 0 | AH56: 0 | AK56: 0 | AN56: 0 | AQ56: 0 | AT56: 0 | AW56: 0 | AZ56: 0 | BC56: 0 | BF56: 0 | BI56: 0 | BJ56: =SUM(BJ30:BJ55) -> 0 | BK56: =D56-BJ56 -> 69 | BN56: 55
BN57: 56
BN58: 57
BN59: 58
BN60: 59
BN61: 60
BN62: 61
BN63: 62
BN64: 63
BN65: 64
BN66: 65
BN67: 66
BN68: 67
BN69: 68
BN70: 69
BN71: 70
BN72: 71
BN73: 72
BN74: 73
BN75: 74
BN76: 75
BN77: 76
BN78: 77
BN79: 78
BN80: 79
BN81: 80
BN82: 81
BN83: 82
BN84: 83
BN85: 84
BN86: 85
BN87: 86
BN88: 87
BN89: 88
BN90: 89
BN91: 90
BN92: 91
BN93: 92
BN94: 93
BN95: 94
BN96: 95
BN97: 96
BN98: 97
BN99: 98
BN100: 99
BN101: 100
BN102: 101
BN103: 102
BN104: 103
BN105: 104
BN106: 105
BN107: 106
BN108: 107
BN109: 108
BN110: 109
BN111: 110
BN112: 111
BN113: 112
BN114: 113
BN115: 114
BN116: 115
BN117: 116
BN118: 117
BN119: 118
BN120: 119
BN121: 120
BN122: 121
BN123: 122
BN124: 123
BN125: 124
BN126: 125
BN127: 126
BN128: 127
BN129: 128
BN130: 129
BN131: 130
